Cogmind - Beta 13 @@@ ROGUE MODE // 2024.02.29 @ 13:39:16 Player: Bunch Result: Destroyed by G-34 Mercenary with Small Laser Performance ------------- Evolutions (1) 500 Regions Visited (2) 400 Robots Destroyed (28) 140 Value Destroyed (616) 616 Prototype IDs (0) 0 Alien Tech Used (0) 0 Bonus (0) 0 TOTAL SCORE: 1656 Bonus ------- None Cogmind --------- Core Integrity 0/400 Matter 300/300 Energy 100/100 System Corruption 0% Temperature Cool (73) Movement Treading (240) Ox1 Location -9/Materials Parts ------- > --- POWER (2) -------- (None) > --- PROPULSION (2) --- Light Treads > --- UTILITY (3) ------ Large Storage Unit > --- WEAPON (2) ------- Light Cannon > --- INVENTORY (15) --- Compact Wheel Sensor Array Improved Sensor Array System Shield Medium Laser EM Pulse Cannon Hammer Mining Claw Peak State ------------ > --- POWER ------------ Ion Engine Light Ion Engine > --- PROPULSION ------- Light Treads Light Treads > --- UTILITY ---------- Large Storage Unit Structural Scanner ECM Suite > --- WEAPON ----------- Assault Rifle Grenade Launcher > --- INVENTORY -------- Compact Wheel Sensor Array Improved Sensor Array Medium Laser Assault Rifle Light Assault Rifle Light Cannon Hammer Mining Claw [Rating: 10] Favorites ----------- Power Light Ion Engine Engine Light Ion Engine Propulsion Light Treads Treads Light Treads Wheel Compact Wheel Utility Large Storage Unit Device ECM Suite Storage Large Storage Unit Weapon Assault Rifle Energy Gun Medium Laser Ballistic Gun Assault Rifle Ballistic Cannon Light Cannon Launcher Grenade Launcher Slashing Weapon Mining Claw Build | -11 -10 -9 ------- Run | Yrd Mat Mat Slots Evolved 2 | . . 2 Power 1 | . . 1 Propulsion . | . . . Utility 1 | . . 1 Weapon . | . . . Parts Attached 32 | 5 7 20 Power 7 | 1 . 6 Engine 7 | 1 . 6 Core . | . . . Reactor . | . . . Propulsion 7 | 2 . 5 Treads 6 | 2 . 4 Leg . | . . . Wheel 1 | . . 1 Hover . | . . . Flight . | . . . Utility 6 | . 4 2 Device 5 | . 3 2 Storage 1 | . 1 . Processor . | . . . Hackware . | . . . Protection . | . . . Artifact . | . . . Weapon 12 | 2 3 7 Energy Gun 2 | . 1 1 Energy Cannon . | . . . Ballistic Gun 5 | 2 . 3 Ballistic Cannon 1 | . . 1 Launcher 3 | . 2 1 Special Weapon . | . . . Impact Weapon . | . . . Slashing Weapon 1 | . . 1 Piercing Weapon . | . . . Special Melee Weapon . | . . . Unidentified Prototypes . | . . . Parts Lost 12 | . . 12 Power 5 | . . 5 Propulsion 3 | . . 3 Utility 2 | . . 2 Weapon 2 | . . 2 Highest Loss Streak 5 | . . 5 To Critical Strikes . | . . . Average Slot Usage (%) 93 | . 98 91 Engine 17 | . 14 19 Treads 23 | . 28 20 Device 16 | . 13 17 Storage 11 | . 12 11 Energy Gun 3 | . 8 1 Ballistic Gun 12 | . 15 11 Ballistic Cannon 1 | . . 1 Launcher 4 | . 4 4 Slashing Weapon 2 | . . 3 Naked Turns . | . . . Heaviest Build 36 | 7 30 36 Greatest Support 40 | 40 40 40 Greatest Overweight (x) 10 | . . 10 Average Overweight (x) . | . . . Largest Inventory Capacity 15 | 5 15 15 Average Capacity 14 | 5 14 15 Most Carried 12 | 3 6 12 Average Carried 7 | 1 4 8 Final Capacity 15 | 5 15 15 Final Carried 8 | 3 6 8 Class Distribution -------------------- 49% | Mutant 42% | Infiltrator-Mutant 8% | Scavenger-Mutant Dominant Class ---------------- Mutant | -10/Materials Infiltrator-Mutant | -9/Materials Resources | -11 -10 -9 ----------- Run | Yrd Mat Mat Matter Collected 859 | 224 18 617 Remotely . | . . . Salvage Created 765 | . 40 725 Parts 58 | . 5 53 Haulers Intercepted . | . . . Recyclers Shooed 1 | . . 1 Parts Field Recycled . | . . . Retrieved Matter . | . . . Parts Self-Destructed . | . . . Prevented . | . . . Kills | -11 -10 -9 ------- Run | Yrd Mat Mat Combat Hostiles Destroyed 19 | . 1 18 Melee 5 | . . 5 Guns 4 | . . 4 Cannons 4 | . . 4 AOE 6 | . 1 5 Classes Destroyed 7 | . 2 5 Worker 1 | . . 1 Builder 2 | . . 2 Recycler 3 | . . 3 Watcher 3 | . 1 2 Swarmer 8 | . . 8 Grunt 6 | . 1 5 Sentry 5 | . . 5 Best Kill Streak 4 | . 1 4 Combat Bots Only 4 | . 1 4 Max Kills in Single Turn 2 | . 1 2 Gunslinging . | . . . Exploded 2 | . 1 2 Melee 1 | . . 1 Uniques/NPCs Destroyed . | . . . Combat | -11 -10 -9 -------- Run | Yrd Mat Mat Hostile Shots Fired 195 | . 2 193 Missed 50 | . 1 49 Damage Taken 1628 | . 50 1578 Core 407 | . . 407 Absorbed by Shields . | . . . Regen/Repaired (Parts) 28 | . . 28 Core Remaining (%) 100 | 100 100 . Volleys Fired 58 | . 7 51 Largest 2 | . 2 2 Hottest 80 | . 80 70 Shots Fired 104 | . 12 92 Gun 64 | . 9 55 Cannon 16 | . . 16 Launcher 24 | . 3 21 Special . | . . . Kinetic 70 | . 4 66 Thermal 10 | . 5 5 Explosive 24 | . 3 21 Electromagnetic . | . . . Robot Hit Streak 12 | . 2 12 Robot Miss Streak 4 | . 2 4 Penetration Max . | . . . Secondary Targets . | . . . Shots Hit Robots 55 | . 5 50 Core Hits 39 | . 3 36 Critical Kills . | . . . Critical Parts Destroyed . | . . . Critical Strikes 1 | . . 1 Blast 1 | . . 1 Melee Attacks 16 | . . 16 Impact . | . . . Slashing 16 | . . 16 Piercing . | . . . Sneak Attacks 2 | . . 2 Combat Hostiles . | . . . Follow-up Attacks . | . . . Damage Inflicted 1568 | . 125 1443 Guns 331 | . 53 278 Cannons 171 | . . 171 Explosions 851 | . 72 779 Melee 215 | . . 215 Ramming . | . . . Kinetic 465 | . 40 425 Thermal 37 | . 13 24 Explosive 851 | . 72 779 Electromagnetic . | . . . Impact . | . . . Slashing 215 | . . 215 Piercing . | . . . Highest Corruption . | . . . Average Corruption . | . . . Corruption Purged . | . . . Corruption Blocked . | . . . Overload Shots . | . . . Overflow Damage 74 | . 11 63 Projectiles 1 | . . 1 Explosions 57 | . 11 46 Melee 16 | . . 16 Knockbacks 2 | . . 2 Impact . | . . . Kinetic 2 | . . 2 Secondary . | . . . Self-Inflicted Damage 98 | . 40 58 Shots 8 | . 1 7 Rammed . | . . . Targets Rammed . | . . . Kicked . | . . . Crushed . | . . . Highest Temperature 113 | . 24 113 Average Temperature 32 | . 9 39 Received Heat Transfer 393 | . 6 387 Siege Activations . | . . . Robots Corrupted . | . . . Combat Hostiles . | . . . Parts Fried . | . . . Impact Corruptions . | . . . Robots Melted . | . . . Combat Hostiles . | . . . Parts Melted 1 | . . 1 Heat Transferred 111 | . 37 74 Parts Sabotaged . | . . . Parts Stolen . | . . . Parts Stripped . | . . . Power Chain Reactions . | . . . Alert | -11 -10 -9 ------- Run | Yrd Mat Mat Peak Influence 263 | . 70 263 Initial 29 | . . 29 Average 102 | . 18 151 Maximum Alert Level 1 | . . 1 Low Security (%) 78 | 100 100 65 Level 1 21 | . . 34 Level 2 . | . . . Level 3 . | . . . Level 4 . | . . . Level 5 . | . . . High Security . | . . . Max Security . | . . . Squads Dispatched 1 | . . 1 Investigation 1 | . . 1 Extermination . | . . . Reinforcement . | . . . Assault . | . . . Garrison . | . . . Intercept . | . . . Searches Triggered . | . . . Construction Impeded . | . . . Haulers Reinforced . | . . . Active Scanning Responses . | . . . Cargo Convoy Interrupts . | . . . Stealth | -11 -10 -9 --------- Run | Yrd Mat Mat Distress Signals 1 | . . 1 Communications Jammed . | . . . Distress Signals . | . . . Times Spotted 44 | . 4 40 Peak Tracking Total 6 | . 2 6 Tactical Retreats 3 | . . 3 Traps | -11 -10 -9 ------- Run | Yrd Mat Mat Traps Triggered . | . . . Indirectly . | . . . Trap Hack Attempts . | . . . Triggered . | . . . Disarmed . | . . . Reprogrammed . | . . . Reused . | . . . Traps Extracted . | . . . Installed . | . . . Triggered . | . . . Machines | -11 -10 -9 ---------- Run | Yrd Mat Mat Machines Disabled 3 | . 1 2 Max in Single Turn 1 | . 1 1 Machines Repaired . | . . . Machines Dismantled . | . . . Machines Sabotaged . | . . . Overloaded Fab Kills . | . . . Hacking | -11 -10 -9 --------- Run | Yrd Mat Mat Machines Accessed 6 | . 3 3 Terminals 4 | . 2 2 Fabricators . | . . . Repair Stations 1 | . . 1 Recycling Units 1 | . 1 . Scanalyzers . | . . . Garrison Access . | . . . Total Hacks 19 | . 8 11 Successful 13 | . 7 6 Failed 6 | . 1 5 Catastrophic 1 | . 1 . Database Lockouts . | . . . Manual . | . . . Terminals 13 | . 5 8 Fabricators . | . . . Repair Stations 3 | . . 3 Recycling Units 3 | . 3 . Scanalyzers . | . . . Garrison Access . | . . . Terminal Hacks 7 | . 4 3 Record 1 | . 1 . Level Access Points 1 | . 1 . Alert Level 2 | . 1 1 Investigation Status 1 | . . 1 Zone Layout 2 | . 1 1 Fabricator Hacks . | . . . Repair Station Hacks 3 | . . 3 Scan Component 1 | . . 1 Repair 1 | . . 1 Refit 1 | . . 1 Recycling Unit Hacks 3 | . 3 . Recycle Component 1 | . 1 . Process 1 | . 1 . Retrieve Matter 1 | . 1 . Scanalyzer . | . . . Garrison Access Hacks . | . . . Unauthorized Hacks . | . . . Terminals . | . . . Fabricators . | . . . Repair Stations . | . . . Recycling Units . | . . . Scanalyzers . | . . . Garrison Access . | . . . Data Cores Recovered . | . . . Used . | . . . Hacking Detections 5 | . 2 3 Full Trace Events 2 | . 1 1 Feedback Events . | . . . Feedback Blocked . | . . . Robot Schematics Acquired . | . . . Robots Built . | . . . Authchips . | . . . Time . | . . . Total Robot Build Rating . | . . . Part Schematics Acquired . | . . . Parts Built . | . . . Authchips . | . . . Time . | . . . Total Part Build Rating . | . . . Parts Repaired 1 | . . 1 Time 26 | . . 26 Parts Recycled 1 | . 1 . Recycled Matter 42 | . 42 . Retrieved Matter 42 | . 42 . Retrieved Components . | . . . Parts Scanalyzed . | . . . Part Schematics Acquired . | . . . Parts Damaged . | . . . Bothacking | -11 -10 -9 ------------ Run | Yrd Mat Mat Used RIF Installer . | . . . Robots Hacked . | . . . Non-combat . | . . . Combat . | . . . Robot Hacks Applied . | . . . Relay Couplers Released . | . . . Fabnet Peak Effective % . | . . . Robots Rewired . | . . . Allies Hacked . | . . . Hacks Repelled . | . . . Allies | -11 -10 -9 -------- Run | Yrd Mat Mat Total Allies . | . . . Largest Group . | . . . Highest-Rated Group . | . . . Highest-Rated Ally . | . . . Total Orders . | . . . Ally Attacks . | . . . Total Damage . | . . . Kills . | . . . Allies Corrupted . | . . . Allies Melted . | . . . Intel | -11 -10 -9 ------- Run | Yrd Mat Mat Robot Analysis Total . | . . . Derelict Logs Recovered . | . . . Drone Launches . | . . . Drone Recoveries . | . . . Exploration | -11 -10 -9 ------------- Run | Yrd Mat Mat Turns Passed 2063 | 87 660 1316 Spaces Moved 897 | 51 312 534 Core 12 | 6 . 6 Treads 885 | 45 312 528 Legs . | . . . Wheels . | . . . Hover . | . . . Flight . | . . . Fastest Speed 50 | 50 160 160 Average Speed 162 | 147 160 165 Slowest Speed 550 | 160 160 550 Overloaded Moves . | . . . Propulsion Burnouts . | . . . Robots Hopped . | . . . Cave-ins Triggered . | . . . Exploration Rate (%) 22 | 4 34 29 Regions Visited 2 Branch Regions . Pre-discovered Areas . | . . . Known Exits Taken 1 | . 1 . Unknown Exits Taken 1 | 1 . . Scrap Searched . | . . . Spaces Dug . | . . . Terrain Destroyed 100 | . 25 75 Melee . | . . . Projectile . | . . . AOE 100 | . 25 75 Terrain Rammed . | . . . Walls Destroyed . | . . . Machines Disabled . | . . . Actions | -11 -10 -9 --------- Run | Yrd Mat Mat Total 1376 | 63 462 851 Wait 330 | . 127 203 Move 895 | 50 311 534 Hop . | . . . Pick Up 30 | 8 6 16 Fast Attach . | . . . Attach 28 | 5 6 17 Detach 9 | . 4 5 Swap 4 | . 1 3 Drop 6 | . . 6 Fire 58 | . 7 51 Melee 16 | . . 16 Ram . | . . . Kick . | . . . Crush . | . . . Escape Stasis . | . . . Rewire . | . . . Trap . | . . . Miscellaneous . | . . . Route ------- -11/Scrapyard -10/Materials (discovered 3 exits: *Mat x3) -9/Materials History --------- Turn | Location | Event 7 | -11/Scrapyard | Discovered new exit (range 15) 88 | -11/Scrapyard | Entered Materials 313 | -10/Materials | Build established: Mutant 586 | -10/Materials | Identified exit to Materials 748 | -10/Materials | Entered another Materials area 748 | -9/Materials | Evolved 2 slots: Power x1, Utility x1 1302 | -9/Materials | Build established: Infiltrator-Mutant 1503 | -9/Materials | Repaired Lgt. Ion Engine 1826 | -9/Materials | Core integrity fell below 50% 1847 | -9/Materials | Lost 5 parts (2p2n1u) 2050 | -9/Materials | Core integrity fell below 20% 2064 | -9/Materials | Destroyed by G-34 Mercenary with Small Laser Last Messages --------------- 01991_ K-01 Serf collects debris. 01996_ Acquired 10 matter. 01998_ K-01 Serf collects debris. Want a larger map view with more modal windows? Or have a large enough display to fit a bigger map in exchange for smaller text? Consider selecting a different UI Layout in the option menu. 02001_ K-01 Serf collects debris. 02023_ ECM Suite destroyed. 02041_ Electrolysis Chamber disabled. 02047_ G-34 Mercenary destroyed. 02047_ Lgt. Treads destroyed. 02052_ Lgt. Ion Engine destroyed. 02055_ Y-45 Defender destroyed. 02058_ G-47 Trooper knocked back. 02060_ Lgt. Assault Rifle destroyed. 02061_ G-47 Trooper Aluminum Leg blasted off. 02062_ Lgt. Ion Engine destroyed. 02063_ Acquired 21 matter. Map ----- +----------------------------------------------------+ | ??????????????? # "??? # # ##??#""" | | ??????????????? # "??? # # ##????????? | | ????????????##### ? ##+### ##????????? | | ????????? ########+##### ### ##????????? | | ????????? ####+### ##????????? | | ???????? # # ##????????? | | ???????????? # # ##????????? | | ??????????????????## + "T" # ##????????? | | ?????????????????? # # """ # ##????????? | | ?????????????????? # # # ##????????? | | ?????????????????? #=% ######## ##????????? | | ?????????????????? # ##????????? | | ?????????????????? #* ##????????? | | ?????????????????? #[[ % *##????####? | | ??????????????#########+### ! # ??? /? | | ??????????????# # =!# ? #? | | ??????????????# # # #? | | ??????????????# # %# #? | | ??????????????# """ # /% #? | | ?????????????##[ """ [[[# #% #? | | ?????????????# """ [[ # ##### #? | | ?????????????## [[ # ##### ? #? | | ?????????????############## ##??????? #? | | ????????????????# % g # ##????????####? | | ????????????????# [!g% T # ##????????????? | | ????????????????# [@=% # ##????????????? | | ????????????????# "="!""" # ##????????????? | | ????????????????# " "%""" # ##????????????? | | ????????????????# """ """ + #?????????????? | | ????????????????# # #?????????????? | | ????????????????# # #?????????????? | | ????????????????########### #?????????????? | | ?????????????????????????? #????????????? | | ?????????????????????????? #????????????? | | ????????????????????????? ????????????? | | ????????????????????????? ##???????????? | | ?????????????????????????# #????????????? | | ?????????????????????????###+###????????????? | | ????????????????????????????????????????????? | | ????????????????????????????????????????????? | | ????????????????????????????????????????????? | | ????????????????????????????????????????????? | | ????????????????????????????????????????????? | | ????????????????????????????????????????????? | | ????????????????????????????????????????????? | | ????????????????????????????????????????????? | | ????????????????????????????????????????????? | | ????????????????????????????????????????????? | | ????????????????????????????????????????????? | | ????????????????????????????????????????????? | +----------------------------------------------------+ Best States ------------- Heat Dissipation 28 Energy Generation 15 Energy Capacity 275 Matter Stores 300 Matter Capacity 300 Sight Range 16 Robot Scan Range 14 Terrain Scan Density 10 ECM Strength 1 Evasion (%) 40 Recoil Reduction 2 Item Schematics ----------------- None Robot Schematics ------------------ None Fabricated ------------ Nothing Alien Tech Used ----------------- None Achievements -------------- None Challenges ------------ None Game ------ Seed NodeProcessingKatana Manual? 0 Play Time 00:30:13 Cumulative 10.8 hours Start 2024.02.29 @ 13:00:02 End 2024.02.29 @ 13:39:16 Sessions 1 Manual Loads 0 Difficulty Rogue Special Mode None Game No. 21 Rogue 16 Adventurer 5 Explorer 0 Win Type - Total 0 Types 0/0/0/0/0/0/0/0/0 Lore% 12 Gallery% 12 Achievement% 11 Wizard Run 0 Options --------- Layout 1 ASCII 0 Keyboard 0 Movement Numpad Keybinds 0 Fullscreen 1 Font 24/X11 Map View 50x35 Zoom Use 7% Tactical HUD 1 Map Filters NONE Filters NONE Steam 1 RUN: d6ae722d-df1a-43c2-b1fa-05a322386f10